Cogmind - Beta 14 @@@ ROGUE MODE // 2024.11.04 @ 21:25:50 Player: OG DANIEL Result: Destroyed by D-53 Grenadier with Mini Grenade Launcher Performance ------------- Evolutions (1) 500 Regions Visited (3) 600 Robots Destroyed (38) 190 Value Destroyed (810) 810 Prototype IDs (1) 20 Alien Tech Used (0) 0 Bonus (10) 10 TOTAL SCORE: 2130 Bonus ------- High Alert Combat Kills 10 Cogmind --------- Core Integrity 0/400 Matter 218/300 Energy 100/100 System Corruption 0% Temperature Cool (0) Movement Core (50) Location -9/Mines Parts ------- > --- POWER (1) -------- (None) > --- PROPULSION (2) --- (None) > --- UTILITY (3) ------ Terrain Scan Processor > --- WEAPON (3) ------- (None) > --- INVENTORY (5) ---- Aluminum Leg Compact Wheel Light Armor Plating Shotgun Katana Peak State ------------ > --- POWER ------------ Light Ion Engine > --- PROPULSION ------- Light Treads Light Treads > --- UTILITY ---------- Small Storage Unit Terrain Scan Processor Light Armor Plating > --- WEAPON ----------- Improved EM Shotgun Light Assault Rifle Heavy Assault Rifle > --- INVENTORY -------- Light Treads Aluminum Leg Compact Wheel Light Armor Plating Light Assault Rifle Shotgun Katana [Rating: 14] Favorites ----------- Power Light Ion Engine Engine Light Ion Engine Propulsion Light Treads Treads Light Treads Leg Aluminum Leg Wheel Compact Wheel Utility Small Storage Unit Device Terrain Scanner Storage Small Storage Unit Processor Terrain Scan Processor Protection Light Armor Plating Weapon Light Assault Rifle Energy Gun Medium Laser Ballistic Gun Light Assault Rifle Build | -11 -10 -9 -9 ------- Run | Yrd Mat Mat Min Slots Evolved 2 | . . 2 . Power . | . . . . Propulsion . | . . . . Utility 1 | . . 1 . Weapon 1 | . . 1 . Parts Attached 33 | 8 6 14 5 Power 4 | 1 2 1 . Engine 4 | 1 2 1 . Core . | . . . . Reactor . | . . . . Propulsion 11 | 4 1 4 2 Treads 9 | 2 1 4 2 Leg 1 | 1 . . . Wheel 1 | 1 . . . Hover . | . . . . Flight . | . . . . Utility 7 | 1 2 2 2 Device 1 | . 1 . . Storage 1 | 1 . . . Processor 1 | . 1 . . Hackware . | . . . . Protection 4 | . . 2 2 Artifact . | . . . . Weapon 11 | 2 1 7 1 Energy Gun 4 | 1 . 3 . Energy Cannon . | . . . . Ballistic Gun 7 | 1 1 4 1 Ballistic Cannon . | . . . . Launcher . | . . . . Special Weapon . | . . . . Impact Weapon . | . . . . Slashing Weapon . | . . . . Piercing Weapon . | . . . . Special Melee Weapon . | . . . . Unidentified Prototypes 1 | . . 1 . Parts Lost 16 | . 1 3 12 Power 2 | . . 1 1 Propulsion 4 | . . . 4 Utility 4 | . 1 . 3 Weapon 6 | . . 2 4 Highest Loss Streak 11 | . 1 2 11 To Critical Strikes . | . . . . Average Slot Usage (%) 90 | . 91 90 90 Engine 11 | . 14 9 9 Treads 25 | . 28 22 18 Device 2 | . 4 . . Storage 12 | . 14 11 11 Processor 5 | . 1 11 11 Protection 2 | . . 5 8 Energy Gun 12 | . 14 10 9 Ballistic Gun 17 | . 14 21 21 Peak Build Rating 14 | 6 8 13 14 Average Rating 8 | 4 6 10 12 On Entrance 6 | . 6 8 13 Naked Turns . | . . . . Heaviest Build 18 | 14 14 18 18 Greatest Support 40 | 40 40 40 40 Greatest Overweight (x) 1 | 1 . . 1 Average Overweight (x) . | . . . . Largest Inventory Capacity 8 | 8 8 8 8 Average Capacity 7 | 7 8 8 8 Most Carried 8 | 8 8 8 8 Average Carried 7 | 4 7 7 7 Final Capacity 8 | 8 8 8 5 Final Carried 8 | 7 8 8 5 Class Distribution -------------------- 61% | Mutant 17% | Scavenger-Tank 13% | Gunner 7% | Tank Dominant Class ---------------- Mutant | -10/Materials Scavenger-Tank | -9/Materials Scavenger-Tank | -9/Mines Resources | -11 -10 -9 -9 ----------- Run | Yrd Mat Mat Min Matter Collected 775 | 310 126 285 54 Remotely . | . . . . Salvage Created 1207 | 117 327 667 96 Parts 79 | 5 23 47 4 Haulers Intercepted . | . . . . Recyclers Shooed 3 | . 1 2 . Parts Field Recycled . | . . . . Retrieved Matter . | . . . . Parts Self-Destructed . | . . . . Prevented . | . . . . Kills | -11 -10 -9 -9 ------- Run | Yrd Mat Mat Min Combat Hostiles Destroyed 25 | . 7 16 2 Guns 24 | . 6 16 2 AOE 1 | . 1 . . Classes Destroyed 10 | 3 4 2 1 Worker 5 | 1 3 1 . Builder 2 | . 1 1 . Tunneler 1 | 1 . . . Recycler 2 | 1 . 1 . Watcher 3 | . 2 1 . Swarmer 9 | . 3 6 . Grunt 11 | . 4 6 1 Brawler 1 | . . 1 . Duelist 1 | . . . 1 Sentry 3 | . . 3 . Best Kill Streak 6 | 2 3 6 2 Combat Bots Only 5 | . 3 5 2 Max Kills in Single Turn 2 | 1 1 2 1 Gunslinging 1 | . . 1 . Exploded 1 | . 1 . . Melee . | . . . . Uniques/NPCs Destroyed . | . . . . Combat | -11 -10 -9 -9 -------- Run | Yrd Mat Mat Min Hostile Shots Fired 155 | . 39 86 30 Missed 38 | . 6 27 5 Damage Taken 2199 | . 425 643 1131 Core 482 | . 81 108 293 Absorbed by Shields . | . . . . Core Remaining (%) 83 | 100 67 . . Volleys Fired 129 | 10 51 57 11 Largest 3 | 2 2 3 3 Hottest 93 | 70 70 93 88 Shots Fired 311 | 15 102 166 28 Gun 311 | 15 102 166 28 Cannon . | . . . . Launcher . | . . . . Special . | . . . . Kinetic 199 | 10 51 117 21 Thermal 105 | 5 51 49 . Explosive . | . . . . Electromagnetic 7 | . . . 7 Robot Hit Streak 13 | 9 13 11 7 Robot Miss Streak 5 | 1 5 5 3 Penetration Max . | . . . . Secondary Targets 8 | . 1 6 1 Max Gunslinging Chain 1 | . 1 1 1 Shots Hit Robots 192 | 12 64 94 22 Core Hits 72 | 4 24 35 9 Critical Kills . | . . . . Critical Parts Destroyed 1 | . 1 . . Critical Strikes 5 | . 4 . 1 Burn 3 | . 3 . . Destroy 2 | . 1 . 1 Melee Attacks . | . . . . Impact . | . . . . Slashing . | . . . . Piercing . | . . . . Sneak Attacks . | . . . . Combat Hostiles . | . . . . Follow-up Attacks . | . . . . Damage Inflicted 2493 | 143 806 1277 267 Guns 2441 | 143 754 1277 267 Cannons . | . . . . Explosions 52 | . 52 . . Melee . | . . . . Ramming . | . . . . Kinetic 1465 | 95 255 938 177 Thermal 886 | 48 499 339 . Explosive . | . . . . Electromagnetic 142 | . 52 . 90 Impact . | . . . . Slashing . | . . . . Piercing . | . . . . Highest Corruption . | . . . . Average Corruption . | . . . . Corruption Purged . | . . . . Corruption Blocked . | . . . . Overload Shots . | . . . . Overflow Damage . | . . . . Projectiles . | . . . . Explosions . | . . . . Melee . | . . . . Knockbacks . | . . . . Impact . | . . . . Kinetic . | . . . . Secondary . | . . . . Self-Inflicted Damage 41 | . 41 . . Shots 1 | . 1 . . Rammed . | . . . . Targets Rammed . | . . . . Kicked . | . . . . Crushed . | . . . . Highest Temperature 256 | 36 256 170 109 Average Temperature 72 | 16 97 57 42 Received Heat Transfer 357 | . 207 150 . Siege Activations . | . . . . Robots Corrupted . | . . . . Combat Hostiles . | . . . . Parts Fried . | . . . . Impact Corruptions . | . . . . Robots Melted . | . . . . Combat Hostiles . | . . . . Parts Melted 5 | 1 4 . . Heat Transferred 2778 | 148 1702 928 . Parts Sabotaged . | . . . . Parts Stolen . | . . . . Parts Stripped . | . . . . Power Chain Reactions . | . . . . Alert | -11 -10 -9 -9 ------- Run | Yrd Mat Mat Min Peak Influence 444 | 15 182 444 165 Initial 95 | . 9 2 95 Average 113 | 3 67 199 150 Maximum Alert Level 2 | . . 2 . Low Security (%) 77 | 100 100 32 100 Level 1 21 | . . 63 . Level 2 1 | . . 3 . Level 3 . | . . . . Level 4 . | . . . . Level 5 . | . . . . High Security . | . . . . Max Security . | . . . . Squads Dispatched 1 | . 1 . . Investigation . | . . . . Extermination . | . . . . Reinforcement 1 | . 1 . . Assault . | . . . . Garrison . | . . . . Intercept . | . . . . Searches Triggered . | . . . . Construction Impeded . | . . . . Haulers Reinforced . | . . . . Active Scanning Responses . | . . . . Cargo Convoy Interrupts . | . . . . Stealth | -11 -10 -9 -9 --------- Run | Yrd Mat Mat Min Distress Signals 7 | . 1 6 . Communications Jammed . | . . . . Distress Signals . | . . . . Times Spotted 40 | . 12 24 4 Peak Tracking Total 4 | . 3 4 2 Tactical Retreats 1 | . . 1 . Traps | -11 -10 -9 -9 ------- Run | Yrd Mat Mat Min Traps Triggered . | . . . . Indirectly . | . . . . Trap Hack Attempts . | . . . . Triggered . | . . . . Disarmed . | . . . . Reprogrammed . | . . . . Reused . | . . . . Traps Extracted . | . . . . Installed . | . . . . Triggered . | . . . . Machines | -11 -10 -9 -9 ---------- Run | Yrd Mat Mat Min Machines Disabled 2 | . 1 . 1 Max in Single Turn 1 | . 1 . 1 Machines Repaired . | . . . . Machines Dismantled . | . . . . Machines Sabotaged . | . . . . Overloaded Fab Kills . | . . . . Hacking | -11 -10 -9 -9 --------- Run | Yrd Mat Mat Min Machines Accessed 4 | . 2 2 . Terminals 2 | . 1 1 . Fabricators . | . . . . Repair Stations . | . . . . Recycling Units 1 | . 1 . . Scanalyzers 1 | . . 1 . Garrison Access . | . . . . Total Hacks 10 | . 4 6 . Successful 9 | . 3 6 . Failed 1 | . 1 . . Catastrophic . | . . . . Database Lockouts . | . . . . Manual . | . . . . Terminals 5 | . 2 3 . Fabricators . | . . . . Repair Stations . | . . . . Recycling Units 2 | . 2 . . Scanalyzers 3 | . . 3 . Garrison Access . | . . . . Terminal Hacks 4 | . 1 3 . Record 2 | . 1 1 . Terminal Index 1 | . . 1 . Dispatch Records 1 | . . 1 . Fabricator Hacks . | . . . . Repair Station Hacks . | . . . . Recycling Unit Hacks 2 | . 2 . . Recycle Component 1 | . 1 . . Process 1 | . 1 . . Scanalyzer 3 | . . 3 . Insert Component 1 | . . 1 . Analyze 2 | . . 2 . Garrison Access Hacks . | . . . . Unauthorized Hacks . | . . . . Terminals . | . . . . Fabricators . | . . . . Repair Stations . | . . . . Recycling Units . | . . . . Scanalyzers . | . . . . Garrison Access . | . . . . Data Cores Recovered . | . . . . Used . | . . . . Hacking Detections 2 | . . 2 . Full Trace Events . | . . . . Feedback Events . | . . . . Feedback Blocked . | . . . . Robot Schematics Acquired . | . . . . Robots Built . | . . . . Authchips . | . . . . Time . | . . . . Total Robot Build Rating . | . . . . Part Schematics Acquired 1 | . . 1 . Parts Built . | . . . . Authchips . | . . . . Time . | . . . . Total Part Build Rating . | . . . . Parts Repaired . | . . . . Time . | . . . . Parts Recycled 1 | . 1 . . Recycled Matter 124 | . 124 . . Retrieved Matter . | . . . . Retrieved Components . | . . . . Parts Scanalyzed 1 | . . 1 . Part Schematics Acquired 1 | . . 1 . Parts Damaged . | . . . . Bothacking | -11 -10 -9 -9 ------------ Run | Yrd Mat Mat Min Used RIF Installer . | . . . . Robots Hacked . | . . . . Non-combat . | . . . . Combat . | . . . . Robot Hacks Applied . | . . . . Relay Couplers Released . | . . . . Fabnet Peak Effective % . | . . . . Robots Rewired . | . . . . Allies Hacked . | . . . . Hacks Repelled . | . . . . Allies | -11 -10 -9 -9 -------- Run | Yrd Mat Mat Min Total Allies . | . . . . Largest Group . | . . . . Highest-Rated Group . | . . . . Highest-Rated Ally . | . . . . Total Orders . | . . . . Ally Attacks . | . . . . Total Damage . | . . . . Kills . | . . . . Allies Corrupted . | . . . . Allies Melted . | . . . . Intel | -11 -10 -9 -9 ------- Run | Yrd Mat Mat Min Robot Analysis Total . | . . . . Derelict Logs Recovered . | . . . . Drone Launches . | . . . . Drone Recoveries . | . . . . Exploration | -11 -10 -9 -9 ------------- Run | Yrd Mat Mat Min Turns Passed 1817 | 138 930 609 140 Spaces Moved 821 | 54 456 247 64 Core 4 | 1 . . 3 Treads 774 | 10 456 247 61 Legs 38 | 38 . . . Wheels 5 | 5 . . . Hover . | . . . . Flight . | . . . . Fastest Speed 50 | 50 160 160 100 Average Speed 160 | 170 160 160 157 Slowest Speed 190 | 190 160 160 160 Overloaded Moves . | . . . . Propulsion Burnouts . | . . . . Robots Hopped . | . . . . Cave-ins Triggered . | . . . . Exploration Rate (%) 24 | 5 49 25 20 Regions Visited 3 Branch Regions 1 Pre-discovered Areas . | . . . . Known Exits Taken . | . . . . Unknown Exits Taken 3 | 1 1 1 . Scrap Searched . | . . . . Spaces Dug . | . . . . Terrain Destroyed . | . . . . Melee . | . . . . Projectile . | . . . . AOE . | . . . . Terrain Rammed . | . . . . Walls Destroyed . | . . . . Machines Disabled . | . . . . Actions | -11 -10 -9 -9 --------- Run | Yrd Mat Mat Min Total 1067 | 82 561 342 82 Wait 56 | 1 45 10 . Move 818 | 53 455 246 64 Hop . | . . . . Pick Up 19 | 9 2 6 2 Fast Attach 13 | 5 3 5 . Attach 10 | 1 . 4 5 Detach 2 | . 1 1 . Swap 10 | 2 3 5 . Drop 10 | 1 1 8 . Fire 129 | 10 51 57 11 Melee . | . . . . Ram . | . . . . Kick . | . . . . Crush . | . . . . Escape Stasis . | . . . . Rewire . | . . . . Trap . | . . . . Miscellaneous . | . . . . Route ------- -11/Scrapyard -10/Materials (discovered 2 exits: *Mat / [*Min]) -9/Materials (discovered 2 exits: [*Min x2]) -9/Mines History --------- Turn | Location | Event 14 | -11/Scrapyard | Discovered new exit (range 15) 139 | -11/Scrapyard | Entered Materials 211 | -10/Materials | Discovered new exit (range 7) 301 | -10/Materials | Build established: Mutant 639 | -10/Materials | Discovered new exit (range 16) 1069 | -10/Materials | Entered another Materials area 1069 | -9/Materials | Evolved 2 slots: Utility x1, Weapon x1 1170 | -9/Materials | Discovered new exit (range 15) 1593 | -9/Materials | Discovered new exit (range 6) 1678 | -9/Materials | Entered Mines 1769 | -9/Mines | Assembled infested the area 1802 | -9/Mines | Core integrity fell below 50% 1813 | -9/Mines | Core integrity fell below 20% 1818 | -9/Mines | Destroyed by D-53 Grenadier with Mini Grenade Launcher Last Messages --------------- 01799_ Lgt. Assault Rifle destroyed. 01802_ The unstable cave ceiling collapses. 01802_ D-53 Grenadier misfires. 01802_ U-05 Engineer builds a Wall. 01804_ U-05 Engineer destroyed. 01805_ Lgt. Armor Plating destroyed. 01805_ Lgt. Treads destroyed. 01806_ U-05 Engineer lays Concrete. 01808_ The unstable cave ceiling collapses. 01808_ U-05 Engineer destroyed. 01809_ The unstable cave ceiling collapses. 01810_ Hvy. Assault Rifle destroyed. 01811_ The unstable cave ceiling collapses. 01812_ K-01 Serf cleans the Laser Drill. 01812_ Lgt. Treads destroyed. 01813_ D-53 Grenadier misfires. 01815_ The unstable cave ceiling collapses. 01817_ K-01 Serf collects debris. 01818_ Lgt. Assault Rifle destroyed. 01818_ Sml. Storage Unit destroyed. Map ----- +----------------------------------------------------+ | ?????????????????????????????????????????????????? | | ???????#########?????????????????????????????????? | | ???????# #?????????????????????????????????? | | ???????#! #?????????????????????????????????? | | ???????#% #?????????????????????????????????? | | ???????#[ #?????????????????????????????????? | | ???????#* ##########????????????????????????? | | ???????# "" #????????????????????????? | | ???????# """ #????????????????????????? | | ???????# """ ####### #????????????????????????? | | ???????# #?????# #????????????????????????? | | ???????#########?????# #????????????? "???????? | | ?????????????????????# #????????????? " ??????? | | ?????????????????????# #????????????? "%"???????? | | ?????????????????????# #????????????? "????????? | | ?????????????????????# #????????????# #????????? | | ?????????????????????# #?????????## ##???????? | | ?????????????????????# ###??????? ##??????? | | ?????????????????????# ##?????? ####???? | | ????????????????????## ####### ????? | | ???????????????????## ## ??????? | | ?????????????????### # d #????????? | | ????????????????## #?????????? | | ???????????????## # #?????????? | | ???????????????# d ##????????? | | ??????????????# @ # #????????? | | ?????????????# """ # ##????????? | | ????????????# """k # # #?????????? | | ????????????? """ # #?????????? | | ????????????? ### ##### ## #?????????? | | ??????????????##### ??#####???? ## #?????????? | | ??????????????????## ??????????? #?????????? | | ???????????????????# ???????????*####?????????? | | ???????????????????### ??????????? #????????????? | | ?????????????????????# ???????????? ????????????? | | ?????????????????????# ????????????##????????????? | | ?????????????????????????????????????????????????? | | ?????????????????????????????????????????????????? | | ?????????????????????????????????????????????????? | | ?????????????????????????????????????????????????? | | ?????????????????????????????????????????????????? | | ?????????????????????????????????????????????????? | | ?????????????????????????????????????????????????? | | ?????????????????????????????????????????????????? | | ?????????????????????????????????????????????????? | | ?????????????????????????????????????????????????? | | ?????????????????????????????????????????????????? | | ?????????????????????????????????????????????????? | | ?????????????????????????????????????????????????? | | ?????????????????????????????????????????????????? | +----------------------------------------------------+ Best States ------------- Heat Dissipation 28 Energy Generation 10 Energy Capacity 250 Matter Stores 300 Matter Capacity 300 Sight Range 16 Terrain Scan Range 14 Terrain Scan Density 85 Armor Coverage 150 Evasion (%) 40 Recoil Reduction 2 Item Schematics ----------------- Lgt. Armor Plating | -9/Materials | Scanalyzed Robot Schematics ------------------ None Fabricated ------------ Nothing Alien Tech Used ----------------- None Achievements -------------- None Challenges ------------ None Game ------ Seed AntimissileHugeFlamer Manual? 0 Play Time 00:18:43 Cumulative 7.7 hours Start 2024.11.04 @ 21:08:31 End 2024.11.04 @ 21:25:50 Sessions 1 Manual Loads 0 Difficulty Rogue Special Mode None Game No. 32 Rogue 32 Adventurer 0 Explorer 0 Win Type - Total 0 Types 0/0/0/0/0/0/0/0/0 Lore% 5 Gallery% 14 Achievement% 12 Wizard Run 0 Options --------- Layout 1 ASCII 0 Keyboard 0 Movement Numpad Keybinds 0 Fullscreen 1 Font 24/Smallcaps Map View 50x35 Zoom Use 0% Tactical HUD 1 Map Filters NONE Filters NONE Steam 1 RUN: 9b57a448-4ed6-470d-a368-7e0abb1aadf3